bitfinex/quotes_ETHUSD_20250217
["timestamp","ask_amount","ask_price","bid_price","bid_amount"]
[1739786384123,3.65325,2737.3,2736.8,3.6538]
[1739786384736,3.65325,2737.3,2736.6,3.65408]
[1739786384938,3.65346,2737.2,2736.7,3.65402]
[1739786385522,3.65346,2737.2,2736.8,0.06036448]
[1739786385829,0.8241,2737.1,2736.7,3.65402]
[1739786386045,0.8241,2737.1,2736.9,0.06036448]
[1739786386248,4.47763,2737.1,2736.7,3.65396]
[1739786386559,0.8241,2737.1,2736.4,0.8235]
[1739786386747,0.8241,2737.1,2736.8,3.71418448]
[1739786387059,0.8241,2737.1,2736.8,3.65382]
[1739786387263,0.8241,2737.1,2736.9,0.06036448]
[1739786387631,0.7749,2737.3,2737.0,3.65361]
[1739786388037,1.0738,2737.6,2737.2,3.65329]
[1739786388236,0.7958,2737.6,2737.2,3.65329]
[1739786388559,1.605921,2737.6,2737.3,0.06036448]
[1739786388865,3.65316,2737.4,2736.9,3.65375]
[1739786389359,7.30635,2737.4,2736.9,3.65375]
[1739786389563,3.65296,2737.5,2736.9,3.65375]
[1739786389922,0.7958,2737.6,2737.0,3.65359]
[1739786390121,4.4487,2737.6,2737.1,3.65342]
[1739786390359,4.92137,2737.6,2737.0,3.65359]
[1739786390561,0.7958,2737.6,2737.3,3.65311]
[1739786391157,0.7958,2737.6,2737.2,0.8146]
[1739786391539,0.7958,2737.6,2737.1,3.65337]
[1739786391738,3.65304,2737.5,2736.9,4.44945]
[1739786392075,3.65304,2737.5,2737.0,3.65361]
[1739786392376,3.65304,2737.5,2736.9,3.65376]
[1739786392377,3.65312,2737.4,2736.9,3.65376]
[1739786392765,3.65312,2737.4,2737.0,3.65363]
[1739786393187,3.65325,2737.3,2736.8,3.65378]
[1739786393677,0.810175,2737.5,2736.7,3.7699]
[1739786393880,0.7958,2737.6,2737.1,3.65343]
[1739786394088,0.7958,2737.6,2737.2,3.65336]
[1739786394289,0.7958,2737.6,2736.9,3.65364]
[1739786394481,0.7958,2737.6,2737.0,3.65356]
[1739786394647,0.7958,2737.6,2737.2,3.65324]
[1739786395269,3.6527,2737.7,2737.2,4.40754]
[1739786395460,3.6527,2737.7,2737.1,3.65346]
[1739786395461,3.65291,2737.6,2737.1,3.65346]
[1739786395656,3.65296,2737.5,2736.9,4.40798]
[1739786395857,3.65313,2737.4,2736.9,8.06167]
[1739786396069,3.65313,2737.4,2736.9,8.06168]
[1739786396275,0.798,2737.3,2736.9,4.40798]
[1739786397485,0.7903,2737.6,2737.1,3.65347]
[1739786397653,0.7903,2737.6,2737.2,3.65329]
[1739786398058,3.65298,2737.5,2737.0,3.65356]
[1739786398407,4.44315,2737.6,2737.1,3.65343]
[1739786399653,0.7903,2737.6,2737.1,3.65343]
[1739786399955,0.7903,2737.6,2737.2,3.65324]
[1739786400166,0.76937,2737.6,2737.2,3.65324]
[1739786400405,0.76937,2737.6,2737.1,3.65343]
[1739786400568,4.42223,2737.6,2737.1,3.65343]
[1739786400772,0.76937,2737.6,2737.2,3.65333]
[1739786400973,0.76937,2737.6,2736.9,5.00153683]
[1739786401156,3.93049,2737.9,2737.4,3.65297]
[1739786401900,3.65256,2737.8,2737.2,3.65329]
[1739786402194,0.0075,2737.7,2736.6,0.7868]
[1739786402494,3.65344,2737.2,2736.7,1.04020889]
[1739786402796,3.65344,2737.2,2736.7,3.65397]
[1739786403116,3.65344,2737.2,2736.7,3.65403]
[1739786403255,0.7765,2737.2,2736.7,3.65396]
[1739786403570,4.42988,2737.2,2736.7,3.65396]
[1739786404610,0.7765,2737.2,2736.9,3.65367]
[1739786404769,14.41057,2738.6,2736.6,0.7868]
[1739786404770,0.7521,2737.6,2737.5,3.65296]
[1739786404957,0.7521,2737.6,2736.8,0.8216]
[1739786405158,3.65324,2737.3,2736.8,3.6538]
[1739786405388,3.65324,2737.3,2736.6,7.92638136]
[1739786405389,0.7521,2737.6,2736.7,3.65394]
[1739786405596,3.65343,2737.2,2736.7,3.65394]
[1739786405790,0.8026,2737.1,2736.7,4.84146889]
[1739786405992,0.8026,2737.1,2736.9,3.65375]
[1739786406196,3.66046,2737.6,2736.9,3.65375]
[1739786406499,0.278,2737.6,2737.2,3.65327]
[1739786406669,4.45531,2737.7,2737.2,3.65327]
[1739786406997,0.8026,2737.7,2737.2,3.65336]
[1739786407353,0.8026,2737.7,2737.4,3.6531]
[1739786407594,0.7972,2738.0,2737.4,3.6531]
[1739786407799,3.65244,2737.9,2737.4,3.6531]
[1739786407999,3.6526,2737.8,2737.3,3.65321]
[1739786408297,3.65244,2737.9,2737.3,0.813736]
[1739786408592,3.65243,2737.9,2737.3,3.65319]
[1739786408898,0.7972,2738.0,2737.5,3.65296]
[1739786409200,4.4495,2738.0,2737.5,3.65296]
[1739786409378,0.7972,2738.0,2737.6,3.65283]
[1739786410006,0.7972,2738.0,2737.7,3.65267]
[1739786410227,0.7972,2738.0,2737.5,7.30585]
[1739786410428,0.7972,2738.0,2737.7,3.6527]
[1739786410611,0.8048,2738.3,2738.0,3.65228]
[1739786410794,0.8048,2738.3,2737.8,3.65247]
[1739786411390,3.65225,2738.1,2737.5,3.65293]
[1739786411695,3.65231,2738.0,2737.5,3.65293]
[1739786411999,3.65231,2738.0,2737.4,3.65297]
[1739786412000,3.65203,2738.2,2737.6,4.3833]
[1739786412212,3.65224,2738.1,2737.6,4.3833]
[1739786412520,0.7872,2738.0,2737.2,3.65333]
[1739786412725,3.6529,2737.6,2737.0,3.65355]
[1739786412884,3.6529,2737.6,2737.1,3.65348]
[1739786413320,3.6529,2737.6,2737.0,3.65356]
[1739786413534,3.6529,2737.6,2737.0,8.115887]
[1739786413831,3.65297,2737.5,2737.0,4.462327]
[1739786414125,3.6531,2737.4,2736.8,3.65381]
[1739786414309,3.65289,2737.6,2737.0,3.65355]
[1739786414509,3.65303,2737.5,2736.9,7.30742]
[1739786414713,1.0652,2737.7,2736.7,3.65396]
[1739786414918,0.0075,2737.6,2736.7,3.65396]
[1739786415237,3.65326,2737.3,2736.7,4.54237689]
[1739786415437,3.65326,2737.3,2736.7,8.19630689]
[1739786415744,3.65318,2737.4,2736.8,3.65384]
[1739786415947,3.65297,2737.5,2736.9,3.65364]
[1739786416110,3.65313,2737.4,2736.9,3.65364]
[1739786416307,3.65297,2737.5,2736.9,4.47324269]
[1739786416522,3.65297,2737.5,2736.9,3.65364]
[1739786417299,1.0652,2737.7,2736.6,3.8307]
[1739786417494,1.0652,2737.7,2736.9,3.65366]
[1739786418044,1.0652,2737.7,2736.7,0.06056197]
[1739786418045,3.65304,2737.5,2737.0,3.71417197]
[1739786418199,3.6531,2737.4,2737.0,0.06056197]
[1739786418625,3.6531,2737.4,2736.9,3.65376]
[1739786418826,3.65305,2737.5,2737.1,0.06056197]
[1739786419096,3.65305,2737.5,2736.9,3.65368]
[1739786419305,3.65305,2737.5,2737.2,0.06056197]
[1739786419507,3.65305,2737.5,2736.9,3.65368]
[1739786419732,3.65285,2737.6,2737.3,0.06056197]
[1739786419935,3.65306,2737.5,2736.9,3.65368]
[1739786420133,3.65306,2737.5,2737.4,0.06056197]
[1739786420339,3.65306,2737.5,2736.9,3.65368]
[1739786420340,3.65322,2737.4,2736.9,3.65368]
[1739786420832,0.83707,2737.6,2737.0,0.06056197]
[1739786421039,1.0652,2737.7,2737.0,3.71411197]
[1739786421335,7.30602,2737.5,2737.0,3.71411197]
[1739786421540,3.65318,2737.4,2737.0,0.06056197]
[1739786421741,0.0075,2737.6,2737.0,0.06056197]
[1739786422107,3.65332,2737.3,2736.8,3.65386]
[1739786422320,3.65332,2737.3,2737.1,0.06056197]
[1739786422523,3.65332,2737.3,2736.8,3.65386]
[1739786422699,3.65332,2737.3,2737.2,0.06056197]
[1739786422902,3.65332,2737.3,2736.8,3.65386]
[1739786423225,3.65317,2737.4,2736.8,3.65382]
[1739786423428,3.65317,2737.4,2736.9,3.71432197]
[1739786423939,3.65319,2737.4,2736.9,3.71432197]
[1739786424242,3.65341,2737.2,2736.9,0.06056197]
[1739786424444,0.8012,2737.3,2736.9,0.06056197]
[1739786424445,3.6535,2737.1,2736.9,0.06056197]
[1739786424748,0.8012,2737.3,2736.6,0.8307]
[1739786424952,7.93025136,2737.1,2737.0,0.06084326]
[1739786425105,0.8321,2736.6,2736.1,3.65474]
[1739786425341,0.8321,2736.6,2736.2,4.15894433]
[1739786425546,0.8321,2736.6,2736.3,3.65449]
[1739786425741,0.8321,2736.9,2736.5,3.65429]
[1739786425947,0.8321,2737.3,2736.6,0.05868033]
[1739786426280,4.48535,2737.3,2736.8,3.65381]
[1739786426462,0.8321,2737.3,2736.9,3.65366]
[1739786426668,0.8321,2737.3,2736.9,3.71279653]
[1739786427063,0.8143,2737.7,2737.2,3.65334]
[1739786427251,0.8143,2737.7,2737.4,3.65302]
[1739786427455,8.11204,2738.0,2737.4,3.65302]
[1739786427682,4.45963,2738.0,2737.4,3.65302]
[1739786427882,0.8073,2738.0,2737.6,3.6528]
[1739786428091,3.65227,2738.1,2737.5,0.05906808]
[1739786428391,0.8073,2738.2,2737.6,0.05906808]
[1739786428707,3.65297,2737.5,2736.7,4.42007]
[1739786429013,3.65345,2737.2,2736.6,3.65414]
[1739786429204,3.45067136,2737.6,2736.2,1.234134]
[1739786429205,0.7753,2736.9,2736.2,1.234134]
[1739786429499,0.7753,2736.9,2736.4,3.65441]
[1739786429798,0.7753,2736.9,2736.2,4.44317]
[1739786430000,3.6539,2736.8,2736.2,4.44317]
[1739786430182,0.7753,2736.9,2736.2,4.44312]
[1739786430510,4.42907,2736.9,2736.4,3.65441]
[1739786431778,0.7753,2736.9,2736.4,4.464163]
[1739786432140,0.7753,2736.9,2736.4,0.809753]
[1739786432344,4.42908,2736.9,2736.4,0.809753]
[1739786432967,3.65393,2736.8,2736.4,0.809753]
[1739786433469,0.7753,2736.9,2736.4,0.809753]
[1739786433745,3.65398,2736.8,2736.4,0.809753]
[1739786434380,3.65398,2736.8,2736.2,4.44319]
[1739786434559,7.30796,2736.8,2736.3,0.05720176]
[1739786434759,7.30796,2736.8,2736.2,4.44319]
[1739786434760,0.7753,2736.9,2736.2,0.7885]
[1739786434960,0.7753,2736.9,2736.5,3.6542]
[1739786435255,0.0075,2736.8,2736.0,7.45779]
[1739786435452,0.0075,2736.8,2735.9,0.0992]
[1739786435453,3.65444,2736.4,2736.1,0.755699]
[1739786435656,3.65444,2736.4,2735.9,0.0992]
[1739786435884,4.41344,2736.4,2735.9,0.0992]
[1739786436583,0.759,2736.4,2735.9,0.0992]
[1739786436884,0.759,2736.4,2736.0,3.65493]
[1739786437087,0.759,2736.4,2735.9,0.0992]
[1739786437261,3.65457,2736.3,2735.9,0.0992]
[1739786437791,0.759,2736.4,2735.9,0.0992]
[1739786438072,0.759,2736.4,2736.0,3.65496]
[1739786438275,0.759,2736.4,2735.9,0.0992]
[1739786438583,4.41349,2736.4,2735.9,0.0992]
[1739786438787,3.65463,2736.3,2735.9,0.0992]
[1739786439470,4.41349,2736.4,2735.9,0.0992]
[1739786439671,3.65469,2736.3,2735.9,0.0992]
[1739786439889,4.41349,2736.4,2735.9,0.0992]
[1739786440099,8.06803,2736.4,2735.9,0.0992]
[1739786440305,3.65457,2736.3,2735.9,0.0992]
[1739786440464,4.41349,2736.4,2735.9,0.0992]
[1739786441086,8.06803,2736.4,2735.9,0.0992]
[1739786441287,4.41349,2736.4,2735.9,0.0992]
[1739786441464,4.41349,2736.4,2735.9,3.75428]
[1739786441866,8.06805,2736.4,2735.9,3.75428]
[1739786442094,3.65464,2736.3,2735.9,0.0992]
[1739786442389,3.65463,2736.3,2735.9,0.0992]
[1739786443789,0.759,2736.4,2735.9,0.0992]
[1739786443953,0.759,2736.4,2736.0,3.65496]
[1739786444587,4.41344,2736.4,2735.9,1.286835]
[1739786444781,3.6547,2736.2,2735.9,0.9114]
[1739786444975,3.6547,2736.2,2735.9,0.0992]
[1739786446160,4.41351,2736.4,2736.0,3.65484]
[1739786446161,0.759,2736.4,2736.0,3.65484]
[1739786446360,4.41346,2736.4,2736.0,3.65484]
[1739786446554,0.759,2736.4,2736.0,3.65497]
[1739786447294,0.759,2736.4,2736.0,3.65488]
[1739786447494,0.759,2736.4,2736.0,3.6549]
[1739786447697,3.65425,2736.6,2736.0,7.30978]
[1739786447994,1.524875,2736.6,2735.9,0.0992]
[1739786448200,3.65457,2736.3,2735.9,0.0992]
[1739786448406,3.65457,2736.3,2735.9,3.7543]
[1739786448562,3.6543,2736.5,2736.0,7.30984]
[1739786448760,3.6543,2736.5,2736.1,3.65481]
[1739786448961,3.6543,2736.5,2736.0,3.65487]
[1739786449197,3.6543,2736.5,2736.0,7.30975]
[1739786449512,3.6543,2736.5,2736.0,3.65487]
[1739786449660,3.65443,2736.4,2736.1,0.05848602]
[1739786450069,7.30871,2736.5,2736.0,3.65494]
[1739786450261,3.6543,2736.5,2736.2,0.05848602]
[1739786450465,3.65444,2736.4,2735.9,0.0992]
[1739786450985,3.65444,2736.4,2736.0,0.05860766]
[1739786451394,3.6543,2736.5,2736.0,0.05860766]
[1739786451598,3.65443,2736.4,2736.0,0.05860766]
[1739786452396,3.6543,2736.5,2736.0,0.05860766]
[1739786452697,3.6543,2736.5,2736.0,3.71351766]
[1739786452862,3.65449,2736.4,2736.0,0.05860766]
[1739786453362,3.6543,2736.5,2736.0,0.05860766]
[1739786453561,3.65451,2736.4,2736.0,0.05860766]
[1739786453800,3.65443,2736.4,2736.0,0.05860766]
[1739786455084,3.6543,2736.5,2736.0,0.05860766]
[1739786455319,3.6545,2736.4,2736.0,0.05860766]
[1739786456100,3.65451,2736.4,2736.0,0.05860766]
[1739786456279,3.65443,2736.4,2736.0,0.05860766]
[1739786456679,3.6543,2736.5,2736.0,0.05860766]
[1739786456883,3.6543,2736.5,2736.0,3.71350766]
[1739786457084,0.7655,2736.6,2736.0,0.05860766]
[1739786457568,3.65467,2736.3,2736.0,0.05860766]
[1739786458204,4.41353,2736.1,2736.0,0.05860766]
[1739786458389,4.42103,2736.1,2736.0,0.05860766]
[1739786458598,4.42867,2736.0,2735.9,0.0992]
[1739786458773,7.87934136,2736.0,2735.9,0.0992]
[1739786458967,9.3982285,2736.0,2735.9,0.0992]
[1739786460411,4.47012,2736.2,2735.9,0.0992]
[1739786460702,1.0934,2736.2,2735.9,0.0992]
[1739786461212,1.0322,2736.7,2736.1,0.8198]
[1739786461367,4.68634,2736.7,2736.2,0.05956574]
[1739786461572,0.0075,2736.6,2736.2,0.05956574]
[1739786461772,3.6543,2736.5,2736.2,0.05956574]
[1739786462297,3.65454,2736.4,2736.2,0.05956574]
[1739786462495,3.6543,2736.5,2736.2,0.05956574]
[1739786462855,0.0075,2736.6,2736.3,0.05936801]
[1739786463008,3.6543,2736.5,2736.3,0.05936801]
[1739786463170,3.6543,2736.5,2735.9,3.75421]
[1739786463171,3.65482,2736.2,2735.9,0.0992]
[1739786463371,0.0075,2736.0,2735.9,0.0992]
[1739786463577,3.66247,2736.0,2735.9,0.0992]
[1739786463778,0.0075,2736.0,2735.9,0.0992]
[1739786464000,4.45494,2736.1,2735.9,0.0992]
[1739786464184,0.8001,2736.1,2735.9,0.0992]
[1739786464588,3.65497,2736.0,2735.9,0.0992]
[1739786464788,4.107977,2736.0,2735.9,0.0992]
[1739786465802,0.453007,2736.0,2735.9,0.0992]
[1739786466116,0.81,2736.4,2735.9,0.0992]
[1739786466303,3.65431,2736.5,2736.0,3.65486]
[1739786466487,3.65431,2736.5,2736.1,0.8148]
[1739786466689,1.088,2736.6,2736.1,4.46958]
[1739786466898,4.74224,2736.6,2736.1,0.8148]
[1739786467096,1.088,2736.6,2736.1,0.8148]
[1739786467435,5.34,2737.0,2736.1,0.8148]
[1739786467595,3.65367,2737.0,2736.5,3.65427]
[1739786467795,0.468907,2737.0,2736.6,0.7808]
[1739786468185,0.0075,2737.2,2736.6,0.7808]
[1739786468404,0.0075,2737.2,2736.8,3.65382]
[1739786468593,8.211,2737.4,2736.9,3.65367]
[1739786468815,8.211,2737.4,2737.1,3.65342]
[1739786469031,8.211,2737.4,2736.9,3.65372]
[1739786469383,8.211,2737.4,2737.1,3.65344]
[1739786469617,8.211,2737.4,2736.9,7.30737]
[1739786469785,8.211,2737.4,2737.0,3.6536]
[1739786469980,8.211,2737.4,2737.1,3.65347]
[1739786470184,8.211,2737.4,2736.6,0.7808]
[1739786470491,4.42261,2738.3,2737.2,0.7503]
[1739786470720,0.1534442,2738.4,2737.8,4.40286]
[1739786470895,0.1534442,2738.4,2737.9,3.6524]
[1739786471091,0.1534442,2738.4,2737.8,4.40286]
[1739786471406,3.6519,2738.3,2737.8,0.7503]
[1739786471611,3.65191,2738.3,2737.8,0.7503]
[1739786472383,0.1534442,2738.4,2737.8,0.7503]
[1739786472787,0.1534442,2738.4,2737.9,3.65235]
[1739786472997,0.1534442,2738.4,2738.0,0.05774148]
[1739786473193,0.1534442,2738.4,2738.0,0.50378063]
[1739786473393,0.1534442,2738.4,2738.2,3.65199]
[1739786473811,0.1534442,2738.4,2738.3,0.05774148]
[1739786474007,0.1534442,2738.4,2738.2,3.65199]
[1739786474211,0.1534442,2738.4,2738.3,0.05774148]
[1739786474417,0.1534442,2738.4,2738.0,4.09827915]
[1739786474596,0.1534442,2738.4,2738.1,0.05774148]
[1739786474802,0.1534442,2738.4,2738.2,3.65201]
[1739786475210,0.1534442,2738.4,2738.3,0.05774148]
[1739786475533,0.1534442,2738.4,2738.3,4.4363]
[1739786475824,0.1534442,2738.4,2738.3,4.49404148]
[1739786475989,0.1534442,2738.4,2738.3,0.84214148]
[1739786476606,0.1534442,2738.4,2738.3,4.49404148]
[1739786476891,0.1534442,2738.4,2738.3,0.84214148]
[1739786477094,0.1534442,2738.4,2738.3,0.05774148]
[1739786477493,0.1534442,2738.4,2738.1,3.65206]
[1739786477693,0.1534442,2738.4,2738.3,0.05774148]
[1739786477918,0.1534442,2738.4,2738.1,3.65206]
[1739786478121,0.1534442,2738.4,2738.3,0.05774148]
[1739786478290,0.1534442,2738.4,2737.9,0.7844]
[1739786478495,3.8052042,2738.4,2738.3,0.05774148]
[1739786478696,0.1534442,2738.4,2737.9,4.43679]
[1739786478907,0.1534442,2738.4,2738.3,0.05774148]
[1739786479226,3.8052942,2738.4,2738.3,0.05774148]
[1739786479437,0.1534442,2738.4,2737.9,4.43682]
[1739786479726,0.1534442,2738.4,2738.0,3.71003148]
[1739786479932,0.1534442,2738.4,2738.0,0.05774148]
[1739786480100,0.1534442,2738.4,2738.1,7.30423]
[1739786480306,0.1534442,2738.4,2738.3,3.6519]
[1739786480692,0.1534442,2738.4,2738.3,3.70964148]
[1739786481029,0.1534442,2738.4,2738.3,4.48264148]
[1739786483171,0.1534442,2738.4,2738.3,8.0691529]
[1739786483172,4.2e-06,2738.4,2738.3,8.0691529]
[1739786483344,4.2e-06,2738.4,2738.3,9.6225575]
[1739786486239,4.2e-06,2738.4,2738.3,0.05774148]
[1739786486558,4.2e-06,2738.4,2738.2,3.652]
[1739786486854,4.2e-06,2738.4,2738.3,0.05279774]
[1739786487157,3.6518242,2738.4,2737.8,4.65248]
[1739786487315,3.6518242,2738.4,2738.3,0.05083482]
[1739786487516,4.2e-06,2738.4,2738.0,3.65217]
[1739786487817,4.2e-06,2738.4,2738.3,3.6519]
[1739786488227,4.2e-06,2738.4,2738.3,4.4263]
[1739786488427,4.2e-06,2738.4,2738.3,0.82534856]
[1739786488754,4.2e-06,2738.4,2738.3,0.05094856]
[1739786489118,4.2e-06,2738.4,2737.9,3.65232]
[1739786489320,3.6517942,2738.4,2738.3,0.05094856]
[1739786489554,4.2e-06,2738.4,2737.9,3.65241]
[1739786489718,4.2e-06,2738.4,2738.3,0.05094856]
[1739786489917,4.2e-06,2738.4,2738.0,3.6522]
[1739786490249,4.2e-06,2738.4,2738.1,3.65209]
[1739786490456,4.2e-06,2738.4,2738.1,3.70303856]
[1739786490653,4.2e-06,2738.4,2738.1,7.35511856]
[1739786490833,4.2e-06,2738.4,2738.1,3.70302856]
[1739786491029,4.2e-06,2738.4,2738.2,3.652]
[1739786491243,4.2e-06,2738.4,2738.1,0.46108746]
[1739786491433,4.2e-06,2738.4,2738.3,0.05094856]
[1739786491634,4.2e-06,2738.4,2738.0,3.65222]
[1739786491818,4.2e-06,2738.4,2738.3,0.05094856]
[1739786492020,4.2e-06,2738.4,2738.2,3.65196]
[1739786492347,4.2e-06,2738.4,2738.3,0.05094856]
[1739786492737,4.2e-06,2738.4,2738.0,3.65221]
[1739786492931,4.2e-06,2738.4,2738.3,0.05094856]
[1739786493131,4.2e-06,2738.4,2738.0,4.117431]
[1739786493357,4.2e-06,2738.4,2738.3,0.05094856]
[1739786493528,4.2e-06,2738.4,2738.1,3.65213]
[1739786493861,3.6517642,2738.4,2738.0,0.465221]
[1739786494157,3.65195,2738.3,2738.2,0.05094856]
[1739786494363,4.2e-06,2738.4,2737.9,3.65235]
[1739786494567,4.2e-06,2738.4,2738.2,0.05103197]
[1739786494724,4.2e-06,2738.4,2738.0,3.65229]
[1739786495066,3.6518642,2738.4,2737.8,4.65248]
[1739786495263,3.65197,2738.3,2738.1,0.05103197]
[1739786495562,4.41097,2738.3,2737.8,4.65248]
[1739786495764,4.41097,2738.3,2738.2,0.05103197]
[1739786495961,3.65237,2738.0,2737.8,1.0]
[1739786496122,3.65217,2738.1,2737.8,1.0]
[1739786496766,3.65243,2737.9,2737.8,1.0]
[1739786496922,5.139003,2737.9,2737.8,1.0]
[1739786499547,0.7561,2737.9,2737.8,1.0]
[1739786500180,0.7626042,2738.4,2737.8,1.0]
[1739786500349,3.65229,2738.1,2737.8,1.0]
[1739786500752,3.65238,2738.0,2737.8,1.0]
[1739786501136,3.65229,2738.1,2737.8,1.0]
[1739786501339,4.017519,2738.1,2737.8,1.0]
[1739786501772,3.6523,2738.0,2737.8,1.0]
[1739786503445,3.65243,2737.9,2737.8,1.0]
[1739786505158,4.47713,2737.9,2737.8,1.0]
[1739786507274,0.8247,2737.9,2737.8,1.0]
[1739786508337,4.932336,2737.9,2737.8,1.0]
[1739786508874,1.279906,2737.9,2737.8,1.0]
[1739786509243,0.8322,2737.9,2737.8,1.0]
[1739786509476,0.8322,2737.9,2737.8,1.05263979]
[1739786509675,4.48463,2737.9,2737.8,1.05263979]
[1739786509886,4.48463,2737.9,2737.8,1.0]
[1739786510572,0.8322,2737.9,2737.8,1.0]
[1739786510877,0.73646887,2738.3,2737.8,1.05263979]
[1739786510878,0.7886,2738.2,2737.8,1.05263979]
[1739786511181,0.7886,2738.2,2737.8,4.70514979]
[1739786511350,0.0075,2738.1,2737.8,1.05263979]
[1739786511545,0.7886,2738.2,2737.8,4.70510979]
[1739786511745,4.2e-06,2738.4,2737.8,1.05263979]
[1739786511946,4.2e-06,2738.4,2738.2,3.65203]
[1739786512358,4.2e-06,2738.4,2738.3,0.05262461]
[1739786512870,3.6517642,2738.4,2738.3,0.05262461]
[1739786513057,4.2e-06,2738.4,2738.0,3.65229]
[1739786513263,3.6517742,2738.4,2737.9,3.6524]
[1739786513451,3.6517742,2738.4,2738.1,0.05262461]
[1739786513648,0.8326,2738.3,2737.8,1.0]
[1739786513846,0.8251,2738.3,2737.8,1.0]
[1739786514076,4.477,2738.3,2737.9,0.05040468]
[1739786514277,8.12897,2738.3,2737.9,0.05040468]
[1739786514484,4.477,2738.3,2737.9,0.05040468]
[1739786514687,3.65204,2738.2,2737.9,0.05040468]
[1739786515068,0.0075,2738.1,2737.9,0.05040468]
[1739786515261,3.65969,2738.1,2737.9,0.05040468]
[1739786515464,0.0075,2738.1,2737.9,0.05040468]
[1739786516178,3.65967,2738.1,2737.9,0.05040468]
[1739786516343,3.6523,2738.0,2737.9,0.05040468]
[1739786516842,4.48038142,2738.0,2737.9,0.05040468]
[1739786517796,0.0075,2737.9,2737.8,1.0]
[1739786517977,3.65227,2738.1,2737.8,1.0]
[1739786518294,3.65233,2738.0,2737.8,1.05020743]
[1739786518502,3.65993,2737.9,2737.8,1.05020743]
[1739786518787,0.8343,2737.9,2737.8,1.05020743]
[1739786519357,0.8343,2737.9,2737.8,1.0]
[1739786519560,0.8343,2737.9,2737.8,1.05020743]
[1739786520203,0.772,2738.1,2737.8,1.05020743]
[1739786520383,4.42417,2738.1,2737.8,1.05020743]
[1739786520698,0.772,2738.1,2737.9,0.05029847]
[1739786523493,0.278,2738.2,2737.9,0.05029847]
[1739786523695,3.9301,2738.2,2737.9,0.05029847]
[1739786523899,0.278,2738.2,2737.9,0.05029847]
[1739786524995,4.4391542,2738.4,2737.9,0.05029847]
[1739786524996,0.7798042,2738.4,2737.9,0.05029847]
[1739786525164,0.7798042,2738.4,2737.9,3.70269847]
[1739786525165,4.7095842,2738.4,2737.9,3.70269847]
[1739786525500,0.0075,2738.3,2737.9,3.70269847]
[1739786525859,0.0075,2738.3,2737.9,3.70262847]
[1739786526261,0.0075,2738.3,2737.9,0.05029847]
[1739786526463,3.65211,2738.2,2737.9,0.05029847]
[1739786526865,4.2e-06,2738.4,2738.1,3.65205]
[1739786527103,4.2e-06,2738.4,2738.2,0.04870256]
[1739786527405,4.2e-06,2738.4,2738.2,3.70070256]
[1739786528097,4.2e-06,2738.4,2738.2,0.04870256]
[1739786528502,4.2e-06,2738.4,2738.0,3.65217]
[1739786528692,4.2e-06,2738.4,2738.1,0.04870256]
[1739786529364,4.2e-06,2738.4,2738.1,3.70086256]
[1739786529568,4.2e-06,2738.4,2738.1,0.04870256]
[1739786529982,4.2e-06,2738.4,2738.1,3.70086256]
[1739786530790,4.2e-06,2738.4,2738.1,3.70078256]
[1739786530995,4.2e-06,2738.4,2738.2,3.65202]
[1739786531182,4.2e-06,2738.4,2738.1,7.82332315]
[1739786531491,4.2e-06,2738.4,2738.1,4.12254059]
[1739786531698,4.2e-06,2738.4,2738.2,3.69938034]
[1739786533017,4.2e-06,2738.4,2738.3,3.6519]
[1739786533311,4.2e-06,2738.4,2738.3,0.04707726]
[1739786533513,4.2e-06,2738.4,2738.2,3.65203]
[1739786533816,4.2e-06,2738.4,2738.3,0.04707726]
[1739786534174,4.2e-06,2738.4,2738.2,0.77747006]
[1739786534505,4.2e-06,2738.4,2738.3,0.04707726]
[1739786534711,3.65217,2738.1,2737.8,1.0]
[1739786534927,3.65233,2738.0,2737.9,0.04698624]
[1739786535203,3.65983,2738.0,2737.9,0.04698624]
[1739786535508,4.73609714,2738.0,2737.9,0.04698624]
[1739786535667,3.65993,2737.9,2737.8,1.0]
[1739786536001,3.65993,2737.9,2737.8,1.04698624]
[1739786536208,3.66743,2737.9,2737.8,1.04698624]
[1739786536506,16.26410136,2737.9,2737.8,1.0]
[1739786536801,20.21207407,2737.9,2737.8,1.0]
[1739786537004,6.65993,2737.9,2737.8,1.0]
[1739786537180,3.0075,2737.9,2737.8,1.0]
[1739786537380,0.278,2738.0,2737.8,1.0]
[1739786537597,9.2701,2738.2,2737.8,1.04530086]
[1739786537967,0.278,2738.2,2737.8,1.04530086]
[1739786538167,0.278,2738.2,2737.9,4.44891]
[1739786538383,0.278,2738.2,2737.9,5.36359909]
[1739786538719,0.278,2738.2,2738.0,0.04574083]
[1739786539507,4.2e-06,2738.4,2738.0,3.69795083]
[1739786539704,4.2e-06,2738.4,2738.2,3.65201]
[1739786539896,4.2e-06,2738.4,2738.1,3.65216]
[1739786540209,4.2e-06,2738.4,2738.2,0.04574083]
[1739786540709,4.2e-06,2738.4,2738.1,3.65205]
[1739786541206,4.2e-06,2738.4,2738.2,0.04574083]
[1739786541909,4.2e-06,2738.4,2738.3,0.04574083]
[1739786542110,4.2e-06,2738.4,2738.0,3.65222]
[1739786542311,4.2e-06,2738.4,2738.1,0.04574083]
[1739786542814,4.2e-06,2738.4,2738.1,3.69786083]
[1739786542974,4.2e-06,2738.4,2738.1,3.69780083]
[1739786543791,4.2e-06,2738.4,2738.2,3.65196]
[1739786544111,4.2e-06,2738.4,2738.1,3.65206]
[1739786544315,4.2e-06,2738.4,2738.3,0.04574083]
[1739786544609,4.2e-06,2738.4,2738.2,3.65203]
[1739786544909,4.2e-06,2738.4,2738.3,0.04538429]
[1739786545081,4.2e-06,2738.4,2738.1,8.21437959]
[1739786545286,4.2e-06,2738.4,2738.2,3.69738429]
[1739786546399,4.2e-06,2738.4,2738.2,0.04538429]
[1739786546602,4.2e-06,2738.4,2738.2,3.69741429]
[1739786546801,4.2e-06,2738.4,2738.2,4.43236172]
[1739786547016,4.2e-06,2738.4,2738.2,0.78033172]